fUST/lending_fUST_20250605
["ID","MTS","AMOUNT","RATE_DAILY","PERIOD"]
[364331524,1749072640060,-440.0,0.00019231,2]
[364331526,1749072640070,-1401.26,0.00019231,2]
[364331528,1749072640079,-1601.74,0.00019231,2]
[364331530,1749072640088,-440.0,0.00019231,2]
[364331532,1749072640097,-440.0,0.00019231,2]
[364331534,1749072640106,-440.0,0.00019232,2]
[364331536,1749072640115,-400.0,0.00019232,2]
[364331537,1749072640124,-440.0,0.00019232,2]
[364331538,1749072640133,-440.0,0.00019232,2]
[364331539,1749072640142,-440.0,0.00019232,2]
[364331540,1749072640151,-440.0,0.00019232,2]
[364331541,1749072640160,-400.0,0.00019232,2]
[364331542,1749072640170,-440.0,0.00019232,2]
[364331543,1749072640180,-440.0,0.00019232,2]
[364331544,1749072640189,-440.0,0.00019232,2]
[364331545,1749072640198,-536.41,0.00019232,2]
[364331546,1749072640207,-443.44,0.00019232,2]
[364331547,1749072640216,-440.0,0.00019232,2]
[364331548,1749072640225,-400.0,0.00019232,2]
[364331549,1749072640234,-440.0,0.00019232,2]
[364331550,1749072640243,-400.0,0.00019232,2]
[364331551,1749072640252,-400.0,0.00019232,2]
[364331552,1749072640261,-440.0,0.00019232,2]
[364331553,1749072640270,-932.88,0.00019232,2]
[364331554,1749072640280,-400.0,0.00019232,2]
[364331555,1749072640291,-440.0,0.00019232,2]
[364331556,1749072640300,-440.0,0.00019232,2]
[364331557,1749072640309,-440.0,0.00019232,2]
[364331558,1749072640318,-1592.15,0.00019232,2]
[364331559,1749072640329,-440.0,0.00019232,2]
[364331560,1749072640338,-440.0,0.00019232,2]
[364331561,1749072640347,-440.0,0.00019232,2]
[364331562,1749072640358,-440.0,0.00019232,2]
[364331563,1749072640367,-440.0,0.00019232,2]
[364331564,1749072640377,-440.0,0.00019232,2]
[364331565,1749072640387,-3088.82,0.00019232,2]
[364331566,1749072640396,-440.0,0.00019232,2]
[364331567,1749072640405,-1908.24,0.00019232,2]
[364331568,1749072640414,-440.0,0.00019232,2]
[364331570,1749072640424,-400.0,0.00019232,2]
[364331572,1749072640433,-400.0,0.00019232,2]
[364331574,1749072640443,-510.0,0.00019232,2]
[364331576,1749072640453,-440.0,0.00019232,2]
[364331578,1749072640463,-1479.49,0.00019232,2]
[364331580,1749072640473,-440.0,0.00019232,2]
[364331582,1749072640482,-440.0,0.00019232,2]
[364331584,1749072640491,-400.0,0.00019232,2]
[364331586,1749072640501,-440.0,0.00019232,2]
[364331588,1749072640510,-440.0,0.00019232,2]
[364331590,1749072640520,-440.0,0.00019232,2]
[364331592,1749072640529,-238.86824835,0.00019232,2]
[364331594,1749072640539,-440.0,0.00019232,2]
[364331596,1749072640548,-440.0,0.00019232,2]
[364331598,1749072640559,-769.84,0.00019232,2]
[364331600,1749072640570,-440.0,0.00019233,2]
[364331602,1749072640579,-440.0,0.00019233,2]
[364331604,1749072640589,-440.0,0.00019233,2]
[364331606,1749072640598,-440.0,0.00019233,2]
[364331608,1749072640608,-440.0,0.00019233,2]
[364331610,1749072640617,-440.0,0.00019233,2]
[364331612,1749072640627,-440.0,0.00019233,2]
[364331614,1749072640636,-440.0,0.00019233,2]
[364331616,1749072640647,-440.0,0.00019233,2]
[364331618,1749072640656,-410.0,0.00019233,2]
[364331620,1749072640666,-539.17295753,0.00019233,2]
[364331622,1749072640676,-440.0,0.00019233,2]
[364331624,1749072640686,-440.0,0.00019233,2]
[364331626,1749072640696,-324.57872674,0.00019233,2]
[364331628,1749072640706,-440.0,0.00019233,2]
[364331630,1749072640716,-440.0,0.00019233,2]
[364331632,1749072640725,-440.0,0.00019233,2]
[364331634,1749072640735,-561.94,0.00019233,2]
[364331636,1749072640746,-3312.38,0.00019233,2]
[364331639,1749072640760,-513.5,0.00019233,2]
[364331641,1749072640775,-440.0,0.00019233,2]
[364331644,1749072640789,-492.07,0.00019233,2]
[364331646,1749072640802,-392.10572513,0.00019233,2]
[364331649,1749072640816,-440.0,0.00019233,2]
[364331651,1749072640830,-440.0,0.00019233,2]
[364331654,1749072640845,-440.0,0.00019233,2]
[364331656,1749072640857,-440.0,0.00019233,2]
[364331659,1749072640872,-1560.7,0.00019233,2]
[364331661,1749072640886,-440.0,0.00019233,2]
[364331663,1749072640899,-440.0,0.00019233,2]
[364331666,1749072640912,-430.0,0.00019233,2]
[364331668,1749072640924,-1109.07,0.00019233,2]
[364331671,1749072640940,-440.0,0.00019233,2]
[364331673,1749072640954,-317.71046366,0.00019233,2]
[364331675,1749072640966,-440.0,0.00019233,2]
[364331678,1749072640978,-440.0,0.00019233,2]
[364331680,1749072640991,-440.0,0.00019233,2]
[364331682,1749072641004,-1797.59,0.00019233,2]
[364331685,1749072641019,-440.0,0.00019233,2]
[364331687,1749072641032,-440.0,0.00019233,2]
[364331690,1749072641046,-440.0,0.00019233,2]
[364331692,1749072641061,-440.0,0.00019233,2]
[364331695,1749072641074,-440.0,0.00019234,2]
[364331697,1749072641084,-440.0,0.00019234,2]
[364331699,1749072641095,-440.0,0.00019234,2]
[364331701,1749072641108,-500.0,0.00019302,2]
[364331704,1749072641122,-3651.21898251,0.00019314,2]
[364331706,1749072641135,-14454.12192142,0.00019329,2]
[364331708,1749072641146,-180.600304,0.00019421,2]
[364331711,1749072641158,-440.0,0.00019505,2]
[364331713,1749072641172,-440.0,0.00019505,2]
[364331715,1749072641183,-2461.69,0.00019505,2]
[364331717,1749072641194,-2658.08,0.00019505,2]
[364331719,1749072641205,-2885.75,0.00019505,2]
[364331722,1749072641217,-767.23,0.00019505,2]
[364331724,1749072641229,-440.0,0.00019505,2]
[364331726,1749072641240,-440.0,0.00019505,2]
[364331728,1749072641252,-440.0,0.00019505,2]
[364331730,1749072641264,-440.0,0.00019505,2]
[364331733,1749072641276,-440.0,0.00019505,2]
[364331735,1749072641290,-440.0,0.00019505,2]
[364331737,1749072641301,-440.0,0.00019505,2]
[364331739,1749072641312,-1380.54,0.00019505,2]
[364331741,1749072641324,-440.0,0.00019505,2]
[364331744,1749072641336,-440.0,0.00019505,2]
[364331746,1749072641347,-1401.26,0.00019505,2]
[364331748,1749072641360,-1601.74,0.00019505,2]
[364331749,1749072641372,-440.0,0.00019505,2]
[364331750,1749072641384,-380.0,0.00019505,2]
[364331751,1749072641396,-440.0,0.00019506,2]
[364331752,1749072641407,-440.0,0.00019506,2]
[364331753,1749072641418,-440.0,0.00019506,2]
[364331754,1749072641430,-440.0,0.00019506,2]
[364331755,1749072641443,-440.0,0.00019506,2]
[364331756,1749072641454,-440.0,0.00019506,2]
[364331757,1749072641467,-440.0,0.00019506,2]
[364331758,1749072641479,-440.0,0.00019506,2]
[364331759,1749072641490,-536.41,0.00019506,2]
[364331760,1749072641503,-440.0,0.00019506,2]
[364331761,1749072641516,-440.0,0.00019506,2]
[364331762,1749072641527,-440.0,0.00019506,2]
[364331763,1749072641539,-932.88,0.00019506,2]
[364331764,1749072641550,-440.0,0.00019506,2]
[364331765,1749072641562,-440.0,0.00019506,2]
[364331766,1749072641574,-249.36967264,0.00019506,2]
[364331767,1749072641586,-1592.15,0.00019506,2]
[364331768,1749072641598,-390.0,0.00019506,2]
[364331769,1749072641609,-390.0,0.00019506,2]
[364331770,1749072641621,-440.0,0.00019506,2]
[364331771,1749072641633,-390.0,0.00019506,2]
[364331772,1749072641645,-339.15,0.00019506,2]
[364331773,1749072641657,-390.0,0.00019506,2]
[364331774,1749072641669,-3088.82,0.00019506,2]
[364331775,1749072641681,-440.0,0.00019506,2]
[364331776,1749072641693,-1908.24,0.00019506,2]
[364331777,1749072641704,-440.0,0.00019506,2]
[364331778,1749072641716,-440.0,0.00019506,2]
[364331779,1749072641727,-1479.49,0.00019506,2]
[364331780,1749072641739,-440.0,0.00019506,2]
[364331781,1749072641750,-440.0,0.00019506,2]
[364331782,1749072641762,-440.0,0.00019506,2]
[364331783,1749072641774,-375.9081,0.00019506,2]
[364331784,1749072641786,-440.0,0.00019506,2]
[364331785,1749072641797,-216.94,0.00019506,2]
[364331786,1749072641809,-440.0,0.00019506,2]
[364331787,1749072641822,-769.84,0.00019506,2]
[364331799,1749072641950,-390.0,0.00019507,2]
[364331802,1749072641968,-390.0,0.00019507,2]
[364331804,1749072641977,-390.0,0.00019507,2]
[364331806,1749072641987,-571.64823045,0.00019507,2]
[364331808,1749072641996,-390.0,0.00019507,2]
[364331810,1749072642005,-440.0,0.00019507,2]
[364331812,1749072642014,-390.0,0.00019507,2]
[364331814,1749072642024,-440.0,0.00019507,2]
[364331816,1749072642033,-440.0,0.00019507,2]
[364331818,1749072642042,-440.0,0.00019507,2]
[364331820,1749072642052,-440.0,0.00019507,2]
[364331822,1749072642061,-521.60400265,0.00019507,2]
[364331824,1749072642071,-380.0,0.00019507,2]
[364331826,1749072642080,-440.0,0.00019507,2]
[364331828,1749072642090,-561.94,0.00019507,2]
[364331830,1749072642100,-3312.38,0.00019507,2]
[364331832,1749072642109,-513.5,0.00019507,2]
[364331834,1749072642119,-507.18906685,0.00019507,2]
[364331836,1749072642129,-492.07,0.00019507,2]
[364331838,1749072642139,-390.0,0.00019507,2]
[364331840,1749072642149,-440.0,0.00019507,2]
[364331842,1749072642158,-440.0,0.00019507,2]
[364331844,1749072642167,-348.709724,0.00019507,2]
[364331846,1749072642177,-1560.7,0.00019507,2]
[364331848,1749072642186,-298.33931887,0.00019507,2]
[364331850,1749072642196,-440.0,0.00019507,2]
[364331852,1749072642205,-1109.07,0.00019507,2]
[364331854,1749072642215,-390.0,0.00019507,2]
[364331855,1749072642225,-440.0,0.00019507,2]
[364331856,1749072642234,-440.0,0.00019507,2]
[364331857,1749072642244,-440.0,0.00019507,2]
[364331858,1749072642254,-1797.59,0.00019507,2]
[364331859,1749072642263,-440.0,0.00019507,2]
[364331861,1749072642273,-440.0,0.00019507,2]
[364331862,1749072642286,-440.0,0.00019507,2]
[364331863,1749072642295,-440.0,0.00019507,2]
[364331864,1749072642304,-440.0,0.00019508,2]
[364331865,1749072642314,-440.0,0.00019508,2]
[364331866,1749072642325,-440.0,0.00019508,2]
[364331867,1749072642334,-3651.21898251,0.00019521,2]
[364331868,1749072642343,-2975.48115977,0.00019584,2]
[364331869,1749072642353,-420.0,0.00019639,2]
[364331870,1749072642362,-500.0,0.00019644,2]
[364331871,1749072642373,-297.29849381,0.00019644,2]
[364331872,1749072642382,-500.0,0.00019644,2]
[364331873,1749072642393,-536.41,0.00019719,2]
[364331874,1749072642402,-400.0,0.00019726,2]
[364331875,1749072642412,-400.0,0.00019726,2]
[364331876,1749072642421,-400.0,0.00019726,2]
[364331877,1749072642430,-400.0,0.00019726,2]
[364331878,1749072642440,-400.0,0.00019726,2]
[364331879,1749072642450,-3651.21898251,0.00019728,2]
[364331880,1749072642459,-500.0,0.00019744,2]
[364331881,1749072642468,-440.0,0.00019779,2]
[364331882,1749072642478,-440.0,0.00019779,2]
[364331883,1749072642487,-2461.69,0.00019779,2]
[364331884,1749072642496,-2658.08,0.00019779,2]
[364331885,1749072642505,-2885.75,0.00019779,2]
[364331886,1749072642515,-767.23,0.00019779,2]
[364331887,1749072642524,-440.0,0.00019779,2]
[364331888,1749072642533,-440.0,0.00019779,2]
[364331889,1749072642543,-440.0,0.00019779,2]
[364331890,1749072642552,-343.90499062,0.00019779,2]
[364331891,1749072642562,-440.0,0.00019779,2]
[364331892,1749072642571,-440.0,0.00019779,2]
[364331893,1749072642580,-440.0,0.00019779,2]
[364331894,1749072642589,-1380.54,0.00019779,2]
[364331895,1749072642599,-440.0,0.00019779,2]
[364331896,1749072642609,-440.0,0.00019779,2]
[364331897,1749072642618,-1401.26,0.00019779,2]
[364331898,1749072642628,-1601.74,0.00019779,2]
[364331899,1749072642638,-440.0,0.00019779,2]
[364331900,1749072642647,-440.0,0.0001978,2]
[364331901,1749072642657,-440.0,0.0001978,2]
[364331902,1749072642666,-440.0,0.0001978,2]
[364331903,1749072642675,-440.0,0.0001978,2]
[364331904,1749072642685,-440.0,0.0001978,2]
[364331905,1749072642695,-440.0,0.0001978,2]
[364331906,1749072642705,-440.0,0.0001978,2]
[364331907,1749072642715,-380.0,0.0001978,2]
[364331908,1749072642725,-440.0,0.0001978,2]
[364331909,1749072642738,-440.0,0.0001978,2]
[364331910,1749072642748,-440.0,0.0001978,2]
[364331911,1749072642758,-932.88,0.0001978,2]
[364331912,1749072642767,-440.0,0.0001978,2]
[364331913,1749072642777,-440.0,0.0001978,2]
[364331914,1749072642787,-1592.15,0.0001978,2]
[364331916,1749072642795,-440.0,0.0001978,2]
[364331918,1749072642805,-3088.82,0.0001978,2]
[364331920,1749072642814,-440.0,0.0001978,2]
[364331922,1749072642824,-1908.24,0.0001978,2]
[364331924,1749072642834,-380.0,0.0001978,2]
[364331926,1749072642843,-440.0,0.0001978,2]
[364331928,1749072642852,-1479.49,0.0001978,2]
[364331930,1749072642861,-440.0,0.0001978,2]
[364331932,1749072642870,-440.0,0.0001978,2]
[364331934,1749072642880,-440.0,0.0001978,2]
[364331936,1749072642890,-440.0,0.0001978,2]
[364331938,1749072642899,-440.0,0.0001978,2]
[364331940,1749072642909,-769.84,0.0001978,2]
[364331943,1749072642919,-400.0,0.00019781,2]
[364331946,1749072642927,-440.0,0.00019781,2]
[364331949,1749072642937,-380.0,0.00019781,2]
[364331952,1749072642946,-536.41,0.00019781,2]
[364331955,1749072642956,-380.0,0.00019781,2]
[364331960,1749072642966,-380.0,0.00019781,2]
[364331966,1749072642975,-440.0,0.00019781,2]
[364331970,1749072642984,-440.0,0.00019781,2]
[364331974,1749072642994,-561.94,0.00019781,2]
[364331978,1749072643003,-3312.38,0.00019781,2]
[364331982,1749072643012,-513.5,0.00019781,2]
[364331984,1749072643022,-492.07,0.00019781,2]
[364331986,1749072643031,-210.0,0.00019781,2]
[364331988,1749072643041,-440.0,0.00019781,2]
[364331990,1749072643051,-1560.7,0.00019781,2]
[364331992,1749072643060,-440.0,0.00019781,2]
[364331994,1749072643070,-1109.07,0.00019781,2]
[364331996,1749072643080,-301.41,0.00019781,2]
[364331998,1749072643089,-440.0,0.00019781,2]
[364332000,1749072643100,-440.0,0.00019781,2]
[364332002,1749072643109,-1797.59,0.00019781,2]
[364332004,1749072643119,-440.0,0.00019781,2]
[364332006,1749072643128,-555.86,0.00019781,2]
[364332008,1749072643138,-440.0,0.00019781,2]
[364332010,1749072643147,-380.0,0.00019781,2]
[364332012,1749072643157,-549.81917017,0.00019782,2]
[364332014,1749072643167,-440.0,0.00019782,2]
[364332016,1749072643177,-151.0,0.000198,2]
[364332019,1749072643190,-232.439,0.00019831,2]
[364332021,1749072643199,-3651.21898251,0.00019934,2]
[364332023,1749072643209,-300.0,0.0002,2]
[364332025,1749072643219,-440.0,0.00020053,2]
[364332027,1749072643228,-440.0,0.00020053,2]
[364332029,1749072643238,-2461.69,0.00020053,2]
[364332031,1749072643247,-2658.08,0.00020053,2]
[364332033,1749072643256,-2885.75,0.00020053,2]
[364332035,1749072643267,-767.23,0.00020053,2]
[364332037,1749072643277,-440.0,0.00020053,2]
[364332039,1749072643289,-440.0,0.00020053,2]
[364332041,1749072643299,-500.0,0.00020053,2]
[364332043,1749072643310,-500.0,0.00020053,2]
[364332045,1749072643320,-500.0,0.00020053,2]
[364332047,1749072643329,-217.62625734,0.00020053,2]
[364332049,1749072643339,-500.0,0.00020053,2]
[364332051,1749072643349,-400.15226443,0.00020053,2]
[364332053,1749072643361,-500.0,0.00020053,2]
[364332055,1749072643372,-500.0,0.00020053,2]
[364332057,1749072643381,-500.0,0.00020053,2]
[364332059,1749072643392,-500.0,0.00020053,2]
[364332061,1749072643402,-322.5,0.00020053,2]
[364332063,1749072643411,-500.0,0.00020053,2]
[364332065,1749072643421,-500.0,0.00020053,2]
[364332067,1749072643430,-522.22942023,0.00020053,2]
[364332069,1749072643441,-440.0,0.00020053,2]
[364332071,1749072643451,-440.0,0.00020053,2]
[364332073,1749072643460,-440.0,0.00020053,2]
[364332075,1749072643470,-440.0,0.00020053,2]
[364332077,1749072643479,-1380.54,0.00020053,2]
[364332079,1749072643489,-440.0,0.00020053,2]
[364332081,1749072643499,-440.0,0.00020053,2]
[364332083,1749072643509,-1401.26,0.00020053,2]
[364332085,1749072643519,-1601.74,0.00020053,2]
[364332088,1749072643528,-440.0,0.00020053,2]
[364332090,1749072643539,-360.0,0.00020054,2]
[364332092,1749072643548,-440.0,0.00020054,2]
[364332094,1749072643557,-440.0,0.00020054,2]
[364332095,1749072643566,-370.0,0.00020054,2]
[364332097,1749072643576,-440.0,0.00020054,2]
[364332100,1749072643586,-370.0,0.00020054,2]
[364332102,1749072643596,-440.0,0.00020054,2]
[364332104,1749072643607,-440.0,0.00020054,2]
[364332105,1749072643618,-440.0,0.00020054,2]
[364332108,1749072643629,-440.0,0.00020054,2]
[364332110,1749072643641,-932.88,0.00020054,2]
[364332111,1749072643650,-440.0,0.00020054,2]
[364332114,1749072643660,-203.32,0.00020054,2]
[364332115,1749072643671,-1592.15,0.00020054,2]
[364332118,1749072643680,-440.0,0.00020054,2]
[364332120,1749072643690,-3088.82,0.00020054,2]
[364332121,1749072643700,-457.26,0.00020054,2]
[364332124,1749072643709,-1908.24,0.00020054,2]
[364332125,1749072643718,-371.86493233,0.00020054,2]
[364332128,1749072643728,-1479.49,0.00020054,2]
[364332130,1749072643738,-440.0,0.00020054,2]
[364332132,1749072643750,-440.0,0.00020054,2]
[364332134,1749072643760,-440.0,0.00020054,2]
[364332136,1749072643769,-440.0,0.00020054,2]
[364332138,1749072643779,-440.0,0.00020054,2]
[364332140,1749072643788,-769.84,0.00020054,2]
[364332142,1749072643797,-400.0,0.00020055,2]
[364332144,1749072643808,-440.0,0.00020055,2]
[364332146,1749072643817,-210.0,0.00020055,2]
[364332148,1749072643827,-440.0,0.00020055,2]
[364332150,1749072643836,-561.94,0.00020055,2]
[364332151,1749072643845,-3312.38,0.00020055,2]
[364332154,1749072643854,-513.5,0.00020055,2]
[364332156,1749072643864,-492.07,0.00020055,2]
[364332158,1749072643875,-440.0,0.00020055,2]
[364332160,1749072643884,-1560.7,0.00020055,2]
[364332162,1749072643895,-440.0,0.00020055,2]
[364332164,1749072643904,-1109.07,0.00020055,2]
[364332166,1749072643914,-440.0,0.00020055,2]
[364332168,1749072643924,-440.0,0.00020055,2]
[364332170,1749072643933,-1797.59,0.00020055,2]
[364332172,1749072643942,-440.0,0.00020055,2]
[364332174,1749072643951,-440.0,0.00020055,2]
[364332176,1749072643961,-390.0,0.00020056,2]
[364332178,1749072643970,-536.41,0.00020072,2]
[364332179,1749072643980,-287.0,0.00020077,2]
[364332181,1749072643990,-3651.21898251,0.00020141,2]
[364332184,1749072644000,-151.0,0.000202,3]
[364332186,1749072644011,-2975.48115977,0.00020221,2]
[364332188,1749072644021,-440.0,0.00020327,2]
[364332190,1749072644030,-414.09,0.00020327,2]
[364332192,1749072644040,-2461.69,0.00020327,2]
[364332194,1749072644050,-2658.08,0.00020327,2]
[364332196,1749072644060,-2885.75,0.00020327,2]
[364332198,1749072644069,-767.23,0.00020327,2]
[364332200,1749072644079,-440.0,0.00020327,2]
[364332202,1749072644088,-440.0,0.00020327,2]
[364332204,1749072644099,-440.0,0.00020327,2]
[364332206,1749072644108,-440.0,0.00020327,2]
[364332208,1749072644117,-440.0,0.00020327,2]
[364332210,1749072644128,-440.0,0.00020327,2]
[364332212,1749072644138,-1380.54,0.00020327,2]
[364332214,1749072644147,-440.0,0.00020327,2]
[364332216,1749072644157,-440.0,0.00020327,2]
[364332218,1749072644166,-1401.26,0.00020327,2]
[364332220,1749072644176,-1601.74,0.00020327,2]
[364332222,1749072644186,-440.0,0.00020327,2]
[364332224,1749072644195,-440.0,0.00020328,2]
[364332226,1749072644205,-440.0,0.00020328,2]
[364332228,1749072644214,-440.0,0.00020328,2]
[364332230,1749072644224,-440.0,0.00020328,2]
[364332232,1749072644233,-440.0,0.00020328,2]
[364332234,1749072644243,-440.0,0.00020328,2]
[364332237,1749072644253,-440.0,0.00020328,2]
[364332253,1749072644262,-932.88,0.00020328,2]
[364332256,1749072644366,-440.0,0.00020328,2]
[364332258,1749072644375,-1592.15,0.00020328,2]
[364332259,1749072644384,-518.5,0.00020328,2]
[364332261,1749072644395,-3088.82,0.00020328,2]
[364332264,1749072644405,-1908.24,0.00020328,2]
[364332266,1749072644416,-1479.49,0.00020328,2]
[364332268,1749072644426,-440.0,0.00020328,2]
[364332270,1749072644436,-440.0,0.00020328,2]
[364332272,1749072644446,-164.64,0.00020328,2]
[364332274,1749072644455,-440.0,0.00020328,2]
[364332276,1749072644465,-440.0,0.00020328,2]
[364332278,1749072644474,-769.84,0.00020328,2]
[364332280,1749072644484,-400.0,0.00020329,2]
[364332282,1749072644495,-440.0,0.00020329,2]
[364332284,1749072644504,-500.0,0.00020329,2]
[364332286,1749072644514,-561.94,0.00020329,2]
[364332288,1749072644523,-3312.38,0.00020329,2]
[364332290,1749072644532,-513.5,0.00020329,2]
[364332292,1749072644542,-492.07,0.00020329,2]
[364332294,1749072644552,-440.0,0.00020329,2]
[364332296,1749072644562,-1560.7,0.00020329,2]
[364332298,1749072644571,-150.32,0.00020329,2]
[364332300,1749072644581,-151.0,0.00020329,2]
[364332302,1749072644591,-151.0,0.00020329,2]
[364332304,1749072644600,-151.0,0.00020329,2]
[364332306,1749072644609,-1109.07,0.00020329,2]
[364332308,1749072644618,-440.0,0.00020329,2]
[364332310,1749072644628,-440.0,0.00020329,2]
[364332312,1749072644639,-1797.59,0.00020329,2]
[364332314,1749072644648,-440.0,0.00020329,2]
[364332316,1749072644658,-440.0,0.00020329,2]
[364332318,1749072644668,-3651.21898251,0.00020348,3]
[364332320,1749072644677,-536.41,0.00020416,2]
[364332322,1749072644686,-500.0,0.00020548,2]
[364332324,1749072644696,-500.0,0.00020548,2]
[364332326,1749072644706,-500.0,0.00020548,2]
[364332328,1749072644715,-500.0,0.00020548,2]
[364332330,1749072644724,-500.0,0.00020548,2]
[364332332,1749072644733,-500.0,0.00020548,2]
[364332334,1749072644743,-500.0,0.00020548,2]
[364332336,1749072644752,-500.0,0.00020548,2]
[364332338,1749072644761,-500.0,0.00020548,2]
[364332340,1749072644770,-500.0,0.00020548,2]
[364332342,1749072644779,-500.0,0.00020548,2]
[364332344,1749072644789,-500.0,0.00020548,2]
[364332346,1749072644798,-500.0,0.00020548,2]
[364332348,1749072644807,-500.0,0.00020548,2]
[364332350,1749072644818,-500.0,0.00020548,2]
[364332352,1749072644827,-500.0,0.00020548,2]
[364332354,1749072644836,-500.0,0.00020548,2]
[364332356,1749072644845,-500.0,0.00020548,2]
[364332358,1749072644854,-500.0,0.00020548,2]
[364332360,1749072644864,-500.0,0.00020548,2]
[364332362,1749072644873,-500.0,0.00020548,2]
[364332364,1749072644882,-500.0,0.00020548,2]
[364332366,1749072644891,-500.0,0.00020548,2]
[364332368,1749072644901,-500.0,0.00020548,2]
[364332370,1749072644910,-500.0,0.00020548,2]
[364332372,1749072644919,-500.0,0.00020548,2]
[364332374,1749072644929,-500.0,0.00020548,2]
[364332376,1749072644939,-585.74504744,0.00020548,2]
[364332378,1749072644949,-500.0,0.00020548,2]
[364332380,1749072644958,-500.0,0.00020548,2]
[364332382,1749072644968,-500.0,0.00020548,2]
[364332384,1749072644977,-3651.21898251,0.00020555,3]
[364332386,1749072644986,-684.0,0.000206,2]
[364332388,1749072644996,-151.0,0.000206,3]
[364332390,1749072645005,-80658.34,0.000206,2]
[364332392,1749072645015,-1940.04,0.000206,2]
[364332394,1749072645024,-440.0,0.00020601,2]
[364332396,1749072645034,-2461.69,0.00020601,2]
[364332398,1749072645043,-2658.08,0.00020601,2]
[364332400,1749072645053,-2885.75,0.00020601,2]
[364332402,1749072645063,-767.23,0.00020601,2]
[364332404,1749072645072,-440.0,0.00020601,2]
[364332406,1749072645082,-440.0,0.00020601,2]
[364332408,1749072645092,-440.0,0.00020601,2]
[364332410,1749072645101,-440.0,0.00020601,2]
[364332412,1749072645111,-440.0,0.00020601,2]
[364332414,1749072645120,-440.0,0.00020601,2]
[364332416,1749072645129,-1380.54,0.00020601,2]
[364332418,1749072645139,-440.0,0.00020601,2]
[364332420,1749072645150,-440.0,0.00020601,2]
[364332422,1749072645160,-1401.26,0.00020601,2]
[364332424,1749072645169,-1601.74,0.00020601,2]
[364332426,1749072645179,-440.0,0.00020601,2]
[364332428,1749072645188,-440.0,0.00020602,2]
[364332430,1749072645197,-440.0,0.00020602,2]
[364332432,1749072645206,-440.0,0.00020602,2]
[364332434,1749072645216,-440.0,0.00020602,2]
[364332436,1749072645226,-440.0,0.00020602,2]
[364332438,1749072645235,-440.0,0.00020602,2]
[364332440,1749072645244,-440.0,0.00020602,2]
[364332442,1749072645254,-932.88,0.00020602,2]
[364332444,1749072645263,-440.0,0.00020602,2]
[364332446,1749072645273,-1592.15,0.00020602,2]
[364332448,1749072645284,-3088.82,0.00020602,2]
[364332451,1749072645294,-1908.24,0.00020602,2]
[364332452,1749072645303,-1479.49,0.00020602,2]
[364332455,1749072645313,-440.0,0.00020602,2]
[364332457,1749072645323,-440.0,0.00020602,2]
[364332459,1749072645333,-440.0,0.00020602,2]